[Event "Budapest Chess Festival 2024"]
[Site "Budapest"]
[Date "2024.05.31"]
[Round "9.11"]
[White "Haring, Filip"]
[Black "Pyrig, Roman"]
[Result "0-1"]
[ECO "A25"]
[WhiteElo "2484"]
[BlackElo "2262"]
[Annotator "TA"]
[PlyCount "86"]
[EventDate "2024.05.20"]
[EventType "swiss"]
[EventCountry "HUN"]
[SourceTitle "playchess.com"]
[Source "ChessBase"]
[SourceQuality "1"]
[TimeControl "40/5400+30:1800+30"]

{[%evp 17,86,24,33,12,26,27,29,23,55,6,-2,-16,32,20,48,0,24,-8,0,-5,10,12,104,89,95,104,75,84,137,138,150,100,98,88,66,0,0,0,0,0,0,0,0,-8,-8,-178,-186,-167,-166,-171,-174,-180,-177,-179,-191,-408,-417,-398,-406,-709,-701,-1331,-800,-800,-800,-795,-594,-800,-781,-705,-705]} 1. c4 {[%emt 0:01:34]} e5 {[%emt 0:06:24]} 2. g3 {[%emt 0:00:28]} g6 {[%emt 0:01:11]} 3. Bg2 {[%emt 0:00:09]} Nc6 {[%emt 0:00:20]} 4. Nc3 {[%emt 0:00:11]} Bg7 {[%emt 0:00:05]} 5. Rb1 {[%emt 0:00:04]} d6 {[%emt 0:00:51]} 6. d3 {[%emt 0:00:58]} f5 {[%emt 0:00:31]} 7. e3 {[%emt 0:05:06]} Nf6 {[%emt 0:00:24]} 8. b4 {[%emt 0:01:56]} O-O {[%emt 0:00:37]} 9. Nge2 {[%emt 0:01:08]} Ne7 {[%emt 0:06:51]} 10. b5 {[%emt 0:02:29]} g5 {[%emt 0:14:23]} 11. h4 {[%emt 0:08:27]} g4 {[%emt 0:00:08]} 12. Qb3 {[%emt 0:14:20] White has an edge.} Kh8 {[%emt 0:02:40]} 13. a4 {[%emt 0:05:03]} (13. O-O $14 {is more appropriate.}) 13... Nh5 $11 {[%emt 0:01:25]} 14. Nd5 {[%emt 0:03:05]} Rb8 {[%emt 0:01:27]} (14... Ng6 $11 {deserves consideration.}) 15. Bd2 {[%emt 0:02:29]} Be6 {[%emt 0:00:50]} 16. d4 {[%emt 0:09:24]} (16. Nxe7 $14 Qxe7 17. Kf1) 16... exd4 {[%emt 0:08:56]} 17. O-O {[%emt 0:02:18]} (17. Nxd4 Bxd5 18. cxd5 Bxd4 19. exd4 f4 $17) 17... dxe3 {[%emt 0:14:08]} 18. Bxe3 {[%emt 0:00:55]} Bxd5 {[%emt 0:00:18]} 19. cxd5 {[%emt 0:02:09][%cal Oe2d4]} f4 {[%emt 0:00:02]} 20. Nxf4 $16 {[%emt 0:01:37]} Nxf4 {[%emt 0:00:02]} 21. Bxf4 {[%emt 0:00:09]} Rxf4 {[%emt 0:00:01]} 22. gxf4 {[%emt 0:00:07] Hoping for Rfc1.} Nf5 {[%emt 0:00:02]} (22... Ng6 $142) 23. Qd3 {[%emt 0:06:10]} Nxh4 {[%emt 0:00:35]} 24. Rfe1 {[%emt 0:01:26]} ({Better is} 24. Rfc1) 24... Qf6 {[%emt 0:06:11]} 25. Re6 {[%emt 0:03:00]} Qxf4 {[%emt 0:01:56][%cal Og7d4]} 26. Qe4 {[%emt 0:00:05]} (26. Qe3 $1 $14 Qf7 27. Rb4 (27. Qxa7 Rg8 $15)) 26... Qf7 $1 $11 {[%emt 0:01:02] Some like it hot} 27. Qxg4 {[%emt 0:09:03]} Nxg2 {[%emt 0:01:03]} 28. Kxg2 {[%emt 0:01:03]} Be5 {[%emt 0:00:06] White must now prevent ...Rg8.} 29. Kf1 {[%emt 0:01:46] Ke2 is the strong threat.} Rf8 {[%emt 0:03:15]} 30. Qe2 {[%emt 0:06:17]} Qf4 {[%emt 0:00:47] Against Rb4} 31. Ke1 $2 {[%emt 0:07:23]} (31. Rd1 $1 $11) 31... Bc3+ $40 {[%emt 0:01:04][%mdl 128] Black attacks with force.} (31... Qxa4 32. Rxe5 dxe5 33. Qxe5+ Kg8 34. Qg3+ Kf7 35. Qxc7+ Kg8 36. Qg3+ Kf7 37. Qf3+ Kg7 38. Qe3 $11) 32. Kd1 {[%emt 0:00:03][%cal Be1d1,Bd1c1,Bc1c2][%mdl 32] White is weak on the dark squares} (32. Kf1 $2 Qf5 33. Re3 Qxb1+ $19) 32... Qxa4+ {[%emt 0:00:44]} 33. Kc1 {[%emt 0:00:54] [#]} Qf4+ $1 {[%emt 0:06:35]} 34. Kc2 {[%emt 0:00:53] [#]} Be5 {[%emt 0:00:23][%cal Of4d4] aiming for ...Qd4!} 35. Rb3 {[%emt 0:00:54]} Qd4 {[%emt 0:01:24]} (35... Qxf2 36. Qxf2 Rxf2+ 37. Kd3 $11) 36. f4 {[%emt 0:04:03]} (36. Rd3 Qb2+ (36... Qxf2 37. Qxf2 Rxf2+ 38. Rd2 $14) 37. Kd1 Qa1+ (37... Rxf2 $2 38. Re8+ $18) (37... Qxb5 38. Qc2 $19) 38. Kd2) 36... Qc5+ {[%emt 0:00:23]} ({Not} 36... Qxf4 37. Re7 $19) (36... Rxf4 37. Re8+ Kg7 38. Rg3+ Kh6 39. Re6+ Bf6 40. Qh2+ Rh4 41. Qd2+ Qxd2+ 42. Kxd2 $11) (36... Qxd5 37. Re7 Rg8 (37... Bxf4 38. Qe4 $17) (37... Rxf4 38. Re8+ Kg7 39. Rg3+ Kf6 40. Rf8+ Ke6 41. Rxf4 $11) (37... Qc5+ 38. Kb1 $17) 38. fxe5 $19) (36... Bxf4 37. Re8 Rxe8 38. Qxe8+ Kg7 39. Qe7+ Kg6 40. Qe8+ Kg7 41. Qd7+ Kg6 42. Qxc7 $11) 37. Kb1 {[%emt 0:01:02] Rxe5 would now be deadly.} Qxd5 {[%emt 0:00:10]} ({Weaker is} 37... Bxf4 38. Re8 Qc1+ 39. Ka2 Rxe8 40. Qxe8+ Kg7 41. Qd7+ (41. Qe7+ Kg8 $11) 41... Kf8 42. Qf5+ Kg7 43. Qd7+ Kf8 44. Qf5+ Kg7 45. Qg4+ Kh8 46. Qc8+ Kg7 47. Qd7+ $11) 38. Rd3 {[%emt 0:00:15]} (38. Re3 $142 Qxe6 39. fxe5) 38... Qxb5+ {[%emt 0:00:34] Black is clearly winning.} 39. Kc1 {[%emt 0:00:25]} Qc4+ {[%emt 0:00:24]} 40. Kb1 {[%emt 0:00:00]} Qxe6 {[%emt 0:00:00]} 41. fxe5 {[%emt 0:00:16]} Qxe5 {[%emt 0:00:16]} 42. Re3 {[%emt 0:01:14]} Qf5+ {[%emt 0:00:02]} 43. Kb2 {[%emt 0:00:19]} Qf2 {[%emt 0:00:08] Quite a comeback for Black.   Weighted Error Value: White=0.71/Black=0.35.  Loses game:     	White=1     	---        Mistake:       	White=6     	Black=3      Inaccurate:     	White=2     	Black=2      OK:         	White=6     	Black=15     Best:        	White=4     	---        Strong:       	---       	Black=2} 0-1

[Event "Budapest Chess Festival 2024"]
[Site "Budapest"]
[Date "2024.05.31"]
[Round "9.12"]
[White "Kushko, Dmitriy"]
[Black "Tzidkiya, Yeshaayahu"]
[Result "1-0"]
[ECO "A00"]
[WhiteElo "2445"]
[BlackElo "2468"]
[Annotator "TA"]
[PlyCount "65"]
[EventDate "2024.05.20"]
[EventType "swiss"]
[EventCountry "HUN"]
[SourceTitle "playchess.com"]
[Source "ChessBase"]
[SourceQuality "1"]
[TimeControl "40/5400+30:1800+30"]

{[%evp 9,65,0,0,0,0,-65,-65,-40,0,0,18,-49,-40,-44,-52,-52,-26,-43,28,26,43,43,24,31,84,71,92,53,115,116,120,106,116,101,100,112,235,120,173,159,257,241,627,618,765,616,630,577,1170,1147,1587,1579,1771,1695,3747,3645,29984,3171]} 1. g3 {[%emt 0:00:34]} e5 {[%emt 0:01:15]} 2. c4 {[%emt 0:00:05]} g6 {[%emt 0:01:09]} 3. d4 {[%emt 0:00:27]} Nc6 {[%emt 0:00:36]} 4. d5 {[%emt 0:00:41]} Nce7 {[%emt 0:00:36]} 5. Bh3 {[%emt 0:06:41]} f5 {[%emt 0:05:24]} 6. e4 {[%emt 0:08:38]} d6 {[%emt 0:00:31]} 7. f4 {[%emt 0:11:31]} (7. Nc3 $11) 7... Nf6 $15 {[%emt 0:07:01]} 8. Nc3 {[%emt 0:01:52] Black is slightly better.} exf4 {[%emt 0:15:11]} 9. Bxf4 {[%emt 0:04:54]} Bg7 {[%emt 0:01:56]} 10. exf5 {[%emt 0:06:41]} (10. e5 $11 dxe5 11. Bxe5) 10... Nxf5 {[%emt 0:00:24]} 11. Qe2+ {[%emt 0:00:18]} Kf7 {[%emt 0:00:19]} 12. O-O-O {[%emt 0:00:06]} Re8 {[%emt 0:00:02]} 13. Qd3 {[%emt 0:01:40] [#]} b5 $1 {[%emt 0:01:13]} 14. cxb5 $11 {[%emt 0:03:16]} a6 {[%emt 0:01:11] [#] ...axb5 would now be deadly.} 15. b6 {[%emt 0:04:06]} Rb8 {[%emt 0:00:51]} (15... cxb6 16. Nf3) 16. Nf3 {[%emt 0:00:06]} Rxb6 {[%emt 0:03:40]} (16... c5 $1 $14) 17. Ng5+ {[%emt 0:06:03]} Kg8 {[%emt 0:00:03]} 18. Rhe1 $36 {[%emt 0:00:38][%mdl 2048] White has some pressure.} h6 {[%emt 0:08:18]} (18... Rb4 $14) 19. Ne6 $16 {[%emt 0:00:24]} Bxe6 {[%emt 0:00:02]} 20. dxe6 {[%emt 0:00:12]} Ne7 {[%emt 0:00:06]} 21. Re2 {[%emt 0:07:24] White is much more active.} Qc8 {[%emt 0:09:17]} 22. Rf1 {[%emt 0:02:12] aiming for Be3.} Rc6 {[%emt 0:11:52]} (22... a5 $16 23. Kb1 Qa6 24. Qxa6 Rxa6) 23. Rc2 {[%emt 0:03:34]} (23. Kb1 $18 {[%cal Of4h6] Strongly threatening Bxh6!} Qb8 24. Rc2 (24. Bxh6 Rxc3 25. Qxc3 Ned5 $18)) 23... Rf8 {[%emt 0:02:15] [#]} (23... h5 $16 {was worth a try.}) 24. Be3 $1 $18 {[%emt 0:00:44][%cal Bf4e3,Be3d4,Bd4f6,Bf6g7][%mdl 32]} Kh7 {[%emt 0:19:51]} (24... g5 $16 25. Bd4 g4) 25. Bd4 {[%emt 0:01:56] Rcf2 is the strong threat.} Qb7 $2 {[%emt 0:05:53]} (25... Qd8 26. Kb1 d5) 26. Rcf2 {[%emt 0:12:11]} Ned5 {[%emt 0:00:43][%cal Be7d5,Bd5b4,Bb4d3][%mdl 32] [#]} 27. e7 $1 {[%emt 0:02:02][%mdl 512]} Rb8 {[%emt 0:01:33]} (27... Nxe7 28. Bxf6) 28. Bg2 {[%emt 0:05:04]} Nb4 {[%emt 0:02:45]} 29. Qb1 {[%emt 0:00:02][%cal Of2f6]} d5 {[%emt 0:00:31]} 30. Bxf6 {[%emt 0:02:06] A strong pair of Bishops.} (30. Rxf6 Bxf6 31. Bxf6 Qb6 $11) 30... Qb6 {[%emt 0:00:06]} 31. Bxg7 {[%emt 0:00:48] Hoping for Rf7.} Qe3+ {[%emt 0:00:16]} 32. Kd1 {[%emt 0:00:41] Threatening mate with Rf7.} Nd3 {[%emt 0:00:51]} 33. Re2 {[%emt 0:01:24] Weighted Error Value: White=0.29 (precise) /Black=0.74.  Mistake:       	White=3     	Black=7      Inaccurate:     	---       	Black=2      OK:         	White=5     	Black=5      Best:        	White=4     	Black=1      Strong:       	White=1     	---} (33. Nxd5 $2 {loses.} Nxf2+ 34. Rxf2 Qxf2 $19) (33. Rf7 $142 Kg8 34. Rf8+ (34. Bxd5 h5 $18) 34... Kh7 35. Rxb8 Rb6 36. e8=Q (36. e8=R Nf2+ 37. Rxf2 Qxf2 38. Be5 Qg1+ 39. Kd2 Qf2+ 40. Ne2 Qe3+ 41. Kxe3 d4+ 42. Nxd4 Rxb8 43. Rxb8 h5 44. Rh8#) 36... Nxb2+ 37. Qxb2 Qxe8 38. Rxe8) 1-0

[Event "Budapest Chess Festival 2024"]
[Site "Budapest"]
[Date "2024.05.31"]
[Round "9.13"]
[White "Onyshchuk, Volodymyr"]
[Black "Paprocki, Jaroslaw"]
[Result "1-0"]
[ECO "C50"]
[WhiteElo "2619"]
[BlackElo "2145"]
[Annotator "TA"]
[PlyCount "87"]
[EventDate "2024.05.20"]
[EventType "swiss"]
[EventCountry "HUN"]
[SourceTitle "playchess.com"]
[Source "ChessBase"]
[SourceQuality "1"]
[TimeControl "40/5400+30:1800+30"]

{[%evp 10,87,41,37,43,39,42,38,48,49,82,77,83,68,66,55,97,90,98,87,88,95,97,70,107,110,160,155,174,159,185,185,218,224,238,235,324,312,308,326,311,300,404,371,412,396,385,394,672,672,695,675,913,852,989,903,805,805,1330,1307,1329,1318,1335,1324,29989,1660,1740,1631,29989,29990,29990,29991,29991,29992,29992,29993,29993,29994,29994,29995]} 1. e4 {[%emt 0:04:36]} e5 {[%emt 0:09:51]} 2. Nf3 {[%emt 0:00:10]} Nc6 {[%emt 0:00:15]} 3. Bc4 {[%emt 0:00:08]} Be7 {[%emt 0:00:27]} 4. d4 {[%emt 0:06:23][%cal Bd2d4,Bd4d5][%mdl 32]} d6 {[%emt 0:00:31]} 5. d5 {[%emt 0:01:59]} Nb8 {[%emt 0:00:49]} 6. Bd3 {[%emt 0:00:35]} c6 {[%emt 0:02:31]} 7. c4 {[%emt 0:00:32]} Bg4 {[%emt 0:07:43]} 8. Nc3 {[%emt 0:01:00]} Nf6 {[%emt 0:02:00] White is slightly better.} 9. h3 {[%emt 0:06:17]} Bxf3 {[%emt 0:00:43]} 10. Qxf3 {[%emt 0:00:02]} Na6 {[%emt 0:03:04]} 11. g3 {[%emt 0:09:44]} Nd7 {[%emt 0:06:21]} 12. h4 {[%emt 0:01:17]} Nb4 {[%emt 0:04:13] White stays focused until the end.} 13. Bb1 {[%emt 0:01:28]} a5 {[%emt 0:03:14]} 14. Be3 {[%emt 0:04:45]} O-O {[%emt 0:05:35]} 15. O-O {[%emt 0:03:13]} Na6 {[%emt 0:08:09]} 16. Qe2 {[%emt 0:04:54] Black is weak on the light squares} Bf6 {[%emt 0:02:08]} 17. Rd1 {[%emt 0:02:34]} c5 {[%emt 0:03:08]} (17... Be7 $142 18. Bc2 Nac5) 18. Kg2 {[%emt 0:01:34] White is more active.} g6 {[%emt 0:05:04]} 19. Bc2 {[%emt 0:02:38]} Nc7 {[%emt 0:05:00]} 20. Rh1 {[%emt 0:03:50]} h5 {[%emt 0:05:06]} 21. g4 {[%emt 0:02:10]} hxg4 {[%emt 0:08:08]} 22. Qxg4 {[%emt 0:03:19]} Bg7 {[%emt 0:00:42]} 23. h5 {[%emt 0:01:29]} Nf6 {[%emt 0:00:35]} 24. Qh3 {[%emt 0:00:11]} gxh5 {[%emt 0:01:16]} 25. Bd1 {[%emt 0:02:31][%cal Bc2d1,Bd1h5,Bh5g4,Bg4f5][%mdl 32]} Qd7 {[%emt 0:02:55]} 26. Qh4 {[%emt 0:00:11]} (26. Bxh5 Qxh3+ 27. Rxh3 Nxh5 $18) 26... Rfb8 {[%emt 0:02:26]} 27. Bxh5 {[%emt 0:04:14] [#] And now Rag1 would win.} Kf8 {[%emt 0:01:34]} 28. Ne2 {[%emt 0:03:51][%cal Bc3e2,Be2g3,Bg3f5][%mdl 32] Ng3 would now be deadly.} Nce8 $2 {[%emt 0:01:50]} (28... Ke7 29. Ng3 Rg8) 29. Ng3 $18 {[%emt 0:02:16]} Ng8 {[%emt 0:03:57]} 30. Nf5 {[%emt 0:01:02]} Bf6 {[%emt 0:00:40]} 31. Qg3 {[%emt 0:00:58]} Ng7 {[%emt 0:02:33]} 32. Bg4 {[%emt 0:00:38]} Nxf5 {[%emt 0:00:22]} 33. Bxf5 {[%emt 0:00:04]} (33. exf5 Ke7 34. Rh7 Rf8 $14) 33... Qa4 {[%emt 0:02:40]} 34. b3 {[%emt 0:00:23]} Qe8 {[%emt 0:00:30]} 35. Rh7 {[%emt 0:01:05]} a4 {[%emt 0:00:59]} 36. Rah1 {[%emt 0:00:45][%cal Of5e6]} axb3 {[%emt 0:00:16]} 37. axb3 {[%emt 0:00:12]} (37. Be6 $142 b6 38. Bxf7 Qxf7 39. Rxf7+ Kxf7 40. Rh7+ (40. axb3 Ne7 $18) 40... Kf8 41. Qg6 (41. axb3 Rb7 42. Rxb7 Ne7 43. Bg5 Bxg5 44. Qxg5 Re8 45. Qh5 Rd8 46. Qh6+ Ke8) 41... Ra7 42. Bh6+ (42. Rxa7 Be7 43. Bh6+ Nxh6 44. Qxh6+ Kf7 45. Qe6+ Kg7 46. Rxe7+ Kh8 47. Qh6+ Kg8 48. Qg7#) 42... Nxh6 43. Qxf6+ (43. Rxa7 Be7 44. Qxh6+ Kf7 45. Qe6+ Kg7 46. Rxe7+ Kh8 47. Qh6+ Kg8 48. Qg7#) 43... Rf7 44. Qxh6+ Ke7 45. Qe6+ (45. axb3 Rxh7 46. Qxh7+ Kd8 $18) 45... Kd8 46. Qxf7 bxa2 47. Rh8#) 37... b5 {[%emt 0:00:35]} 38. Bg5 {[%emt 0:02:36][%cal Oh1h6] Threatening mate with R1h6!} Qd8 {[%emt 0:01:03] [#]} 39. Rxf7+ $3 {[%emt 0:01:54][%mdl 512] White mates.} Kxf7 {[%emt 0:00:07][%cal Bf8f7,Bf7e8,Be8d8][%mdl 32]} 40. Be6+ {[%emt 0:00:00] This pair of bishops is nice.} Ke8 {[%emt 0:00:00]} 41. Bxf6 {[%emt 0:00:15]} Qxf6 {[%emt 0:01:59]} 42. Qxg8+ {[%emt 0:00:06]} Qf8 {[%emt 0:00:26]} 43. Qg6+ {[%emt 0:01:03]} Kd8 {[%emt 0:00:25]} 44. Rh7 {[%emt 0:00:06] Weighted Error Value: White=0.05 (flawless) /Black=0.77.  Mistake:       	---       	Black=2      Inaccurate:     	---       	Black=5      OK:         	White=13    	Black=4} 1-0

[Event "Budapest Chess Festival 2024"]
[Site "Budapest"]
[Date "2024.05.31"]
[Round "9.14"]
[White "Prohaszka, Peter"]
[Black "Vanczak, Tamas"]
[Result "1-0"]
[ECO "E16"]
[WhiteElo "2581"]
[BlackElo "2412"]
[Annotator "RC"]
[PlyCount "85"]
[EventDate "2024.05.20"]
[EventType "swiss"]
[EventCountry "HUN"]
[SourceTitle "playchess.com"]
[Source "ChessBase"]
[SourceQuality "1"]
[TimeControl "40/5400+30:1800+30"]

1. d4 {[%emt 0:00:36]} Nf6 {[%emt 0:00:50]} 2. c4 {[%emt 0:00:23]} e6 {[%emt 0:00:16]} 3. Nf3 {[%emt 0:00:20]} Bb4+ {[%emt 0:00:19]} 4. Bd2 {[%emt 0:00:10]} Qe7 {[%emt 0:00:13]} 5. g3 {[%emt 0:00:45]} Bxd2+ {[%emt 0:00:18]} 6. Qxd2 {[%emt 0:00:08]} Nc6 {[%emt 0:00:11]} 7. b3 {[%emt 0:07:38]} Ne4 {[%emt 0:03:09]} 8. Qb2 {[%emt 0:04:45]} O-O {[%emt 0:00:31]} 9. Bg2 {[%emt 0:01:08]} d6 {[%emt 0:03:31]} 10. O-O {[%emt 0:01:07]} f5 {[%emt 0:01:01]} 11. b4 {[%emt 0:06:52]} e5 {[%emt 0:01:12]} 12. d5 {[%emt 0:09:09]} Nd8 {[%emt 0:04:01]} 13. Nc3 {[%emt 0:03:38]} Nf6 {[%emt 0:05:56]} 14. Rac1 {[%emt 0:06:42]} Nf7 {[%emt 0:03:07]} 15. c5 {[%emt 0:06:00]} Bd7 {[%emt 0:00:36]} 16. Nd2 {[%emt 0:08:57]} h5 {[%emt 0:11:06]} 17. Qb3 {[%emt 0:04:40]} b6 {[%emt 0:08:45]} 18. c6 {[%emt 0:08:29]} Bc8 {[%emt 0:00:36]} 19. Qc4 {[%emt 0:00:38]} g5 {[%emt 0:16:40]} 20. Rce1 {[%emt 0:01:31]} f4 {[%emt 0:02:23]} 21. e3 {[%emt 0:01:05]} fxg3 {[%emt 0:02:27]} 22. fxg3 {[%emt 0:00:33]} Nh6 {[%emt 0:03:25]} 23. Qd3 {[%emt 0:05:56]} Kg7 {[%emt 0:00:59]} 24. h3 {[%emt 0:00:22]} e4 {[%emt 0:06:09]} 25. Ndxe4 {[%emt 0:01:44]} Nxe4 {[%emt 0:03:42]} 26. Rxf8 {[%emt 0:08:04]} Kxf8 {[%emt 0:02:29]} 27. Nxe4 {[%emt 0:01:27]} Bf5 {[%emt 0:04:28]} 28. Qd4 {[%emt 0:01:20]} Bxe4 {[%emt 0:05:07]} 29. Qh8+ {[%emt 0:06:59]} Kf7 {[%emt 0:00:04]} 30. Qxh6 {[%emt 0:02:45]} Bxg2 {[%emt 0:00:21]} 31. Kxg2 {[%emt 0:01:22]} Qe4+ {[%emt 0:02:02]} 32. Kg1 {[%emt 0:00:03]} Rg8 {[%emt 0:07:44]} 33. Rf1+ {[%emt 0:00:07]} Ke8 {[%emt 0:00:07]} 34. Qxh5+ {[%emt 0:00:05]} Kd8 {[%emt 0:00:18]} 35. Qf3 {[%emt 0:01:18]} Re8 {[%emt 0:00:22]} 36. Qxe4 {[%emt 0:00:49]} Rxe4 {[%emt 0:00:04]} 37. Rf5 {[%emt 0:00:49]} Rxb4 {[%emt 0:00:15]} 38. Rxg5 {[%emt 0:00:09]} a5 {[%emt 0:00:32]} 39. h4 {[%emt 0:00:44]} Ke7 {[%emt 0:00:26]} 40. Rg7+ {[%emt 0:00:00]} Kf6 {[%emt 0:00:00]} 41. Rxc7 {[%emt 0:00:22]} Ke5 {[%emt 0:00:23]} 42. Re7+ {[%emt 0:00:53]} Kxd5 {[%emt 0:00:06]} 43. c7 {[%emt 0:00:05]} 1-0

[Event "Budapest Chess Festival 2024"]
[Site "Budapest"]
[Date "2024.05.31"]
[Round "9.15"]
[White "Hera, Imre Jr."]
[Black "Nguyen, Piotr"]
[Result "1/2-1/2"]
[ECO "B38"]
[WhiteElo "2542"]
[BlackElo "2402"]
[Annotator "TA"]
[PlyCount "41"]
[EventDate "2024.05.20"]
[EventType "swiss"]
[EventCountry "HUN"]
[SourceTitle "playchess.com"]
[Source "ChessBase"]
[SourceQuality "1"]
[TimeControl "40/5400+30:1800+30"]

{[%evp 11,41,48,40,25,35,28,34,33,36,35,35,24,28,38,103,55,46,36,32,36,39,-2,15,-2,-14,-4,0,-19,-18,-21,-18,-44]} 1. e4 {[%emt 0:14:28]} c5 {[%emt 0:01:13]} 2. Nf3 {[%emt 0:00:38][%cal Bg1f3,Bf3d4,Bd4b5][%mdl 32]} g6 {[%emt 0:00:13]} 3. d4 {[%emt 0:00:06]} cxd4 {[%emt 0:00:11]} 4. Nxd4 {[%emt 0:00:06]} Nc6 {[%emt 0:00:11]} 5. c4 {[%emt 0:00:04]} Bg7 {[%emt 0:00:42]} 6. Be3 {[%emt 0:00:02]} Qb6 {[%emt 0:00:07][%csl LRb2,LRd4]} 7. Nb5 {[%emt 0:00:34]} Qa5+ {[%emt 0:00:17]} 8. N1c3 {[%emt 0:00:05]} Nf6 {[%emt 0:00:43]} 9. f3 {[%emt 0:00:15] White is slightly better.} O-O {[%emt 0:04:29]} 10. Be2 {[%emt 0:00:05]} a6 {[%emt 0:02:32]} 11. Nd4 {[%emt 0:00:07]} Nxd4 {[%emt 0:00:10]} 12. Bxd4 {[%emt 0:00:06]} Qg5 {[%emt 0:03:39] [#]} (12... d6 $14) 13. O-O {[%emt 0:04:38]} ({Better is} 13. e5 $1 $16 {[%cal Re5f6]} Ne8 14. g3) 13... Nh5 $14 {[%emt 0:00:43]} 14. Nd5 {[%emt 0:03:13]} Nf4 {[%emt 0:03:20]} 15. Nxf4 {[%emt 0:00:10]} Qxf4 {[%emt 0:00:10]} 16. c5 {[%emt 0:01:32]} Rd8 {[%emt 0:06:19] The position is equal.} 17. Rc1 {[%emt 0:17:59]} d5 {[%emt 0:08:42]} 18. Bxg7 {[%emt 0:02:25]} Kxg7 {[%emt 0:00:23]} 19. exd5 {[%emt 0:00:16] Strongly threatening Qd3.} Be6 {[%emt 0:04:18]} 20. Qd3 {[%emt 0:07:01] [#] aiming for Qc3+.} Rxd5 {[%emt 0:04:58]} 21. Qc3+ {[%emt 0:00:14] Weighted Error Value: White=0.13 (very precise) /Black=0.06 (flawless) .  Mistake:       	White=1     	Black=1      Inaccurate:     	White=1     	---        OK:         	White=7     	Black=8      Best:        	White=1     	---} 1/2-1/2